[Event "Latvijas 2022. gada jauniešu čempionāta fināls"]
[Site "Riga, Latvia"]
[Date "2022.06.13"]
[Round "3.19"]
[White "Paikens, Reinis"]
[Black "Karasevics, Aleksandrs"]
[Result "0-1"]
[TimeControl "3600+30"]
[WhiteElo "1534"]
[BlackElo "1427"]

1. c4 {[%clk 01:00:54]} {[%emt 00:00:05]} e5 {[%clk 00:58:55]} {[%emt
00:02:06]} 2. Nc3 {[%clk 00:59:39]} {[%emt 00:01:45]} Nc6 {[%clk 00:59:11]}
{[%emt 00:00:15]} 3. g3 {[%clk 01:00:03]} {[%emt 00:00:07]} f5 {[%clk
00:59:31]} {[%emt 00:00:10]} 4. Bg2 {[%clk 01:00:14]} {[%emt 00:00:17]} Nf6
{[%clk 00:59:38]} {[%emt 00:00:23]} 5. d3 {[%clk 01:00:36]} {[%emt 00:00:08]}
Bb4 {[%clk 01:00:01]} {[%emt 00:00:08]} 6. Bd2 {[%clk 01:00:28]} {[%emt
00:00:38]} O-O {[%clk 01:00:18]} {[%emt 00:00:13]} 7. a3 {[%clk 00:59:17]}
{[%emt 00:01:42]} Bxc3 {[%clk 01:00:32]} {[%emt 00:00:16]} 8. Bxc3 {[%clk
00:59:21]} {[%emt 00:00:26]} d6 {[%clk 01:00:52]} {[%emt 00:00:09]} 9. Qb3
{[%clk 00:58:22]} {[%emt 00:01:29]} Kh8 {[%clk 01:00:42]} {[%emt 00:00:40]} 10.
Nf3 {[%clk 00:56:01]} {[%emt 00:02:51]} Qe8 {[%clk 01:00:29]} {[%emt 00:00:44]}
11. O-O-O {[%clk 00:53:27]} {[%emt 00:03:02]} a5 {[%clk 00:58:46]} {[%emt
00:02:14]} 12. Rhe1 {[%clk 00:50:43]} {[%emt 00:03:14]} a4 {[%clk 00:58:42]}
{[%emt 00:00:34]} 13. Qc2 {[%clk 00:50:45]} {[%emt 00:00:27]} Na5 {[%clk
00:59:04]} {[%emt 00:00:08]} 14. Nd2 {[%clk 00:50:41]} {[%emt 00:00:34]} Ng4
{[%clk 00:57:38]} {[%emt 00:01:56]} 15. Rf1 {[%clk 00:48:23]} {[%emt 00:02:49]}
Nxh2 {[%clk 00:57:55]} {[%emt 00:00:13]} 16. Rh1 {[%clk 00:48:45]} {[%emt
00:00:07]} Ng4 {[%clk 00:58:19]} {[%emt 00:00:07]} 17. Rdf1 {[%clk 00:48:02]}
{[%emt 00:01:13]} Ra7 {[%clk 00:58:01]} {[%emt 00:00:48]} 18. Bf3 {[%clk
00:44:25]} {[%emt 00:04:06]} h6 {[%clk 00:56:46]} {[%emt 00:01:45]} 19. d4
{[%clk 00:41:36]} {[%emt 00:03:19]} Nf6 {[%clk 00:45:05]} {[%emt 00:12:11]} 20.
e4 {[%clk 00:34:23]} {[%emt 00:07:43]} fxe4 {[%clk 00:43:52]} {[%emt 00:01:44]}
21. Bxe4 {[%clk 00:30:37]} {[%emt 00:04:17]} Nxe4 {[%clk 00:42:17]} {[%emt
00:02:04]} 22. Qxe4 {[%clk 00:30:26]} {[%emt 00:00:40]} Bf5 {[%clk 00:42:33]}
{[%emt 00:00:14]} 23. Qe3 {[%clk 00:26:48]} {[%emt 00:04:09]} Kg8 {[%clk
00:26:27]} {[%emt 00:16:36]} 24. dxe5 {[%clk 00:23:27]} {[%emt 00:03:51]} Nc6
{[%clk 00:25:58]} {[%emt 00:00:58]} 25. f4 {[%clk 00:19:29]} {[%emt 00:04:28]}
Ra8 {[%clk 00:24:29]} {[%emt 00:01:58]} 26. Rh4 {[%clk 00:18:20]} {[%emt
00:01:40]} Rd8 {[%clk 00:23:53]} {[%emt 00:01:06]} 27. g4 {[%clk 00:18:11]}
{[%emt 00:00:39]} Bh7 {[%clk 00:24:13]} {[%emt 00:00:10]} 28. Rfh1 {[%clk
00:15:31]} {[%emt 00:03:09]} dxe5 {[%clk 00:23:42]} {[%emt 00:01:01]} 29. f5
{[%clk 00:15:48]} {[%emt 00:00:13]} Nd4 {[%clk 00:23:03]} {[%emt 00:01:10]} 30.
Rh5 {[%clk 00:09:22]} {[%emt 00:06:55]} Qe7 {[%clk 00:16:54]} {[%emt 00:06:39]}
31. Ne4 {[%clk 00:06:36]} {[%emt 00:03:16]} b6 {[%clk 00:09:27]} {[%emt
00:07:57]} 32. Kb1 {[%clk 00:06:05]} {[%emt 00:01:01]} Qd7 {[%clk 00:04:49]}
{[%emt 00:05:08]} 33. Rd1 {[%clk 00:01:57]} {[%emt 00:04:38]} Nxf5 {[%clk
00:03:23]} {[%emt 00:01:56]} 34. Qd2 {[%clk 00:00:43]} {[%emt 00:01:44]} Qxd2
{[%clk 00:03:36]} {[%emt 00:00:17]} 35. Rxd2 {[%clk 00:01:01]} {[%emt
00:00:12]} Rxd2 {[%clk 00:03:59]} {[%emt 00:00:06]} 36. gxf5 {[%clk 00:00:33]}
{[%emt 00:00:58]} Rg2 {[%clk 00:03:42]} {[%emt 00:00:46]} 37. Ka2 {[%clk
00:00:42]} {[%emt 00:00:21]} Bxf5 {[%clk 00:02:57]} {[%emt 00:01:15]} 38. Nd2
{[%clk 00:00:37]} {[%emt 00:00:35]} e4 {[%clk 00:02:48]} {[%emt 00:00:39]} 39.
Nf1 {[%clk 00:00:57]} {[%emt 00:00:10]} Be6 {[%clk 00:01:59]} {[%emt 00:01:20]}
40. Ne3 {[%clk 00:00:55]} {[%emt 00:00:32]} Rg5 {[%clk 00:02:00]} {[%emt
00:00:28]} 41. Rh4 {[%clk 00:01:00]} {[%emt 00:00:25]} Re8 {[%clk 00:01:51]}
{[%emt 00:00:39]} 42. Rxe4 {[%clk 00:00:32]} {[%emt 00:00:58]} b5 {[%clk
00:01:48]} {[%emt 00:00:33]} 43. Rd4 {[%clk 00:00:32]} {[%emt 00:00:30]} Rc5
{[%clk 00:01:24]} {[%emt 00:00:53]} 44. Kb1 {[%clk 00:00:33]} {[%emt 00:00:30]}
Bxc4 {[%clk 00:01:39]} {[%emt 00:00:14]} 45. Ng4 {[%clk 00:00:32]} {[%emt
00:00:32]} Bb3 {[%clk 00:01:56]} {[%emt 00:00:13]} 0-1

[Event "Latvijas 2022. gada jauniešu čempionāta fināls"]
[Site "Riga, Latvia"]
[Date "2022.06.13"]
[Round "3.20"]
[White "Varpins, Kristians"]
[Black "Germanovs, Georgijs"]
[Result "0-1"]
[TimeControl "3600+30"]
[WhiteElo "1374"]
[BlackElo "1750"]

1. e4 {[%clk 01:00:58]} {[%emt 00:00:02]} e6 {[%clk 00:52:36]} {[%emt
00:08:25]} 2. d4 {[%clk 01:01:20]} {[%emt 00:00:08]} d5 {[%clk 00:52:21]}
{[%emt 00:00:44]} 3. e5 {[%clk 01:01:40]} {[%emt 00:00:09]} c5 {[%clk
00:52:47]} {[%emt 00:00:05]} 4. c3 {[%clk 01:01:59]} {[%emt 00:00:11]} Nc6
{[%clk 00:53:13]} {[%emt 00:00:05]} 5. Nf3 {[%clk 01:02:12]} {[%emt 00:00:16]}
f6 {[%clk 00:53:30]} {[%emt 00:00:13]} 6. exf6 {[%clk 00:58:09]} {[%emt
00:04:32]} Nxf6 {[%clk 00:53:56]} {[%emt 00:00:03]} 7. Bd3 {[%clk 00:53:05]}
{[%emt 00:05:34]} Bd6 {[%clk 00:54:06]} {[%emt 00:00:21]} 8. O-O {[%clk
00:51:34]} {[%emt 00:01:59]} O-O {[%clk 00:54:16]} {[%emt 00:00:22]} 9. Re1
{[%clk 00:49:07]} {[%emt 00:02:57]} h6 {[%clk 00:54:02]} {[%emt 00:00:44]} 10.
a3 {[%clk 00:40:59]} {[%emt 00:08:39]} Bd7 {[%clk 00:53:31]} {[%emt 00:00:59]}
11. b4 {[%clk 00:40:18]} {[%emt 00:01:12]} c4 {[%clk 00:53:47]} {[%emt
00:00:14]} 12. Bc2 {[%clk 00:39:37]} {[%emt 00:01:11]} a6 {[%clk 00:53:28]}
{[%emt 00:00:49]} 13. Ne5 {[%clk 00:36:06]} {[%emt 00:04:02]} Be8 {[%clk
00:53:48]} {[%emt 00:00:10]} 14. Nxc6 {[%clk 00:29:55]} {[%emt 00:06:40]} bxc6
{[%clk 00:54:00]} {[%emt 00:00:18]} 15. Rxe6 {[%clk 00:25:52]} {[%emt
00:04:33]} Bf7 {[%clk 00:53:24]} {[%emt 00:01:06]} 16. Re1 {[%clk 00:22:45]}
{[%emt 00:03:36]} Bh5 {[%clk 00:53:36]} {[%emt 00:00:19]} 17. f3 {[%clk
00:20:06]} {[%emt 00:03:07]} Qc7 {[%clk 00:52:02]} {[%emt 00:02:05]} 18. h3
{[%clk 00:17:33]} {[%emt 00:03:03]} Rae8 {[%clk 00:51:40]} {[%emt 00:00:52]} 19.
Be3 {[%clk 00:15:53]} {[%emt 00:02:10]} Ne4 {[%clk 00:51:09]} {[%emt 00:01:02]}
20. Bxe4 {[%clk 00:11:53]} {[%emt 00:04:30]} dxe4 {[%clk 00:51:28]} {[%emt
00:00:11]} 21. Nd2 {[%clk 00:11:32]} {[%emt 00:00:50]} Bg3 {[%clk 00:50:56]}
{[%emt 00:01:03]} 22. Bf2 {[%clk 00:10:59]} {[%emt 00:01:03]} Bxf2+ {[%clk
00:50:05]} {[%emt 00:01:21]} 23. Kxf2 {[%clk 00:11:14]} {[%emt 00:00:14]} exf3
{[%clk 00:49:10]} {[%emt 00:01:25]} 24. Rxe8 {[%clk 00:08:34]} {[%emt
00:03:11]} Rxe8 {[%clk 00:49:35]} {[%emt 00:00:06]} 25. Nxf3 {[%clk 00:06:57]}
{[%emt 00:02:06]} Bxf3 {[%clk 00:49:29]} {[%emt 00:00:36]} 26. gxf3 {[%clk
00:07:04]} {[%emt 00:00:23]} Qh2+ {[%clk 00:49:52]} {[%emt 00:00:08]} 27. Kf1
{[%clk 00:07:14]} {[%emt 00:00:18]} Re6 {[%clk 00:50:01]} {[%emt 00:00:21]} 28.
Qb1 {[%clk 00:01:30]} {[%emt 00:06:15]} Re2 {[%clk 00:50:18]} {[%emt 00:00:12]}
0-1

[Event "Latvijas 2022. gada jauniešu čempionāta fināls"]
[Site "Riga, Latvia"]
[Date "2022.06.14"]
[Round "4.1"]
[White "Vingris, Mikelis"]
[Black "Francs, Marats"]
[Result "0-1"]
[TimeControl "3600+30"]
[WhiteElo "1781"]
[BlackElo "1882"]

1. e4 {[%clk 01:00:56]} {[%emt 00:00:04]} c5 {[%clk 01:00:51]} {[%emt
00:00:10]} 2. Nf3 {[%clk 01:01:18]} {[%emt 00:00:07]} e6 {[%clk 01:01:11]}
{[%emt 00:00:11]} 3. d4 {[%clk 01:01:44]} {[%emt 00:00:03]} cxd4 {[%clk
01:01:34]} {[%emt 00:00:07]} 4. Nxd4 {[%clk 01:02:10]} {[%emt 00:00:05]} Nc6
{[%clk 01:01:44]} {[%emt 00:00:20]} 5. Nc3 {[%clk 01:02:31]} {[%emt 00:00:08]}
Qc7 {[%clk 01:01:58]} {[%emt 00:00:16]} 6. Ndb5 {[%clk 00:55:14]} {[%emt
00:07:48]} Qb8 {[%clk 01:02:14]} {[%emt 00:00:13]} 7. Nd5 {[%clk 00:46:05]}
{[%emt 00:09:39]} exd5 {[%clk 00:58:32]} {[%emt 00:04:12]} 8. exd5 {[%clk
00:46:28]} {[%emt 00:00:08]} a6 {[%clk 00:48:09]} {[%emt 00:10:52]} 9. Qe2+
{[%clk 00:39:15]} {[%emt 00:07:43]} Be7 {[%clk 00:44:04]} {[%emt 00:04:35]} 10.
Nc3 {[%clk 00:29:59]} {[%emt 00:09:47]} Ne5 {[%clk 00:38:03]} {[%emt 00:06:29]}
11. f4 {[%clk 00:23:55]} {[%emt 00:06:35]} Ng6 {[%clk 00:36:45]} {[%emt
00:01:48]} 12. g3 {[%clk 00:21:42]} {[%emt 00:02:43]} d6 {[%clk 00:36:42]}
{[%emt 00:00:33]} 13. Be3 {[%clk 00:21:18]} {[%emt 00:00:54]} Nf6 {[%clk
00:36:39]} {[%emt 00:00:33]} 14. Bg2 {[%clk 00:20:10]} {[%emt 00:01:37]} O-O
{[%clk 00:36:42]} {[%emt 00:00:27]} 15. O-O-O {[%clk 00:18:50]} {[%emt
00:01:49]} b5 {[%clk 00:36:40]} {[%emt 00:00:33]} 16. a3 {[%clk 00:14:25]}
{[%emt 00:04:56]} Bd7 {[%clk 00:36:07]} {[%emt 00:01:03]} 17. Bf3 {[%clk
00:13:35]} {[%emt 00:01:20]} a5 {[%clk 00:34:18]} {[%emt 00:02:19]} 18. g4
{[%clk 00:13:47]} {[%emt 00:00:18]} b4 {[%clk 00:34:12]} {[%emt 00:00:37]} 19.
Nb1 {[%clk 00:13:56]} {[%emt 00:00:20]} bxa3 {[%clk 00:29:20]} {[%emt
00:05:21]} 20. Nxa3 {[%clk 00:14:19]} {[%emt 00:00:08]} Nh4 {[%clk 00:29:24]}
{[%emt 00:00:26]} 21. f5 {[%clk 00:12:12]} {[%emt 00:02:36]} Bd8 {[%clk
00:22:38]} {[%emt 00:07:17]} 22. Qf2 {[%clk 00:06:41]} {[%emt 00:06:00]} Nxf3
{[%clk 00:22:17]} {[%emt 00:00:51]} 23. Qxf3 {[%clk 00:06:03]} {[%emt
00:01:08]} Re8 {[%clk 00:20:44]} {[%emt 00:02:03]} 24. Bf4 {[%clk 00:05:35]}
{[%emt 00:00:58]} Ne4 {[%clk 00:19:08]} {[%emt 00:02:06]} 25. Rhe1 {[%clk
00:05:35]} {[%emt 00:00:30]} Nc5 {[%clk 00:16:32]} {[%emt 00:03:06]} 26. Rxe8+
{[%clk 00:04:28]} {[%emt 00:01:38]} Bxe8 {[%clk 00:17:00]} {[%emt 00:00:02]} 27.
g5 {[%clk 00:04:28]} {[%emt 00:00:31]} Qc8 {[%clk 00:15:25]} {[%emt 00:02:05]}
28. Bd2 {[%clk 00:03:37]} {[%emt 00:01:20]} Nd7 {[%clk 00:14:17]} {[%emt
00:01:38]} 29. Qf4 {[%clk 00:02:47]} {[%emt 00:01:20]} Ne5 {[%clk 00:14:30]}
{[%emt 00:00:17]} 30. Bc3 {[%clk 00:03:09]} {[%emt 00:00:08]} f6 {[%clk
00:14:30]} {[%emt 00:00:30]} 31. h4 {[%clk 00:03:22]} {[%emt 00:00:18]} Ra7
{[%clk 00:14:42]} {[%emt 00:00:17]} 32. Bxe5 {[%clk 00:01:56]} {[%emt
00:01:55]} dxe5 {[%clk 00:14:32]} {[%emt 00:00:40]} 33. Qe4 {[%clk 00:01:46]}
{[%emt 00:00:40]} Bd7 {[%clk 00:13:42]} {[%emt 00:01:20]} 34. Rf1 {[%clk
00:01:32]} {[%emt 00:00:45]} fxg5 {[%clk 00:12:18]} {[%emt 00:01:54]} 35. Qxe5
{[%clk 00:01:49]} {[%emt 00:00:12]} Bf6 {[%clk 00:12:23]} {[%emt 00:00:25]} 36.
Qe4 {[%clk 00:01:28]} {[%emt 00:00:52]} gxh4 {[%clk 00:12:22]} {[%emt
00:00:31]} 37. d6 {[%clk 00:00:56]} {[%emt 00:01:02]} Qc6 {[%clk 00:12:03]}
{[%emt 00:00:49]} 38. Qd3 {[%clk 00:00:59]} {[%emt 00:00:26]} Rb7 {[%clk
00:12:01]} {[%emt 00:00:32]} 39. c3 {[%clk 00:00:33]} {[%emt 00:00:56]} h6
{[%clk 00:11:38]} {[%emt 00:00:53]} 40. Nc4 {[%clk 00:00:38]} {[%emt 00:00:25]}
Rb5 {[%clk 00:10:49]} {[%emt 00:01:19]} 41. Na3 {[%clk 00:00:33]} {[%emt
00:00:35]} Rd5 {[%clk 00:10:46]} {[%emt 00:00:33]} 42. Qf3 {[%clk 00:00:34]}
{[%emt 00:00:29]} Rxd6 {[%clk 00:10:52]} {[%emt 00:00:25]} 43. Qg4 {[%clk
00:00:36]} {[%emt 00:00:27]} Bxc3 {[%emt 00:02:01]} 0-1

[Event "Latvijas 2022. gada jauniešu čempionāta fināls"]
[Site "Riga, Latvia"]
[Date "2022.06.14"]
[Round "4.2"]
[White "Sokolovskis, Pavels"]
[Black "Zajakins, Artjoms"]
[Result "1/2-1/2"]
[TimeControl "3600+30"]
[WhiteElo "1572"]
[BlackElo "1596"]

1. d4 {[%clk 01:00:58]} {[%emt 00:00:02]} Nf6 {[%clk 01:00:53]} {[%emt
00:00:06]} 2. c4 {[%clk 01:01:25]} {[%emt 00:00:04]} g6 {[%clk 01:01:16]}
{[%emt 00:00:07]} 3. f3 {[%clk 01:01:36]} {[%emt 00:00:20]} d5 {[%clk
01:01:28]} {[%emt 00:00:17]} 4. cxd5 {[%clk 01:01:58]} {[%emt 00:00:08]} Nxd5
{[%clk 01:01:51]} {[%emt 00:00:06]} 5. e4 {[%clk 01:02:22]} {[%emt 00:00:07]}
Nb6 {[%clk 01:02:07]} {[%emt 00:00:14]} 6. Nc3 {[%clk 01:02:23]} {[%emt
00:00:29]} Bg7 {[%clk 01:02:03]} {[%emt 00:00:33]} 7. Be3 {[%clk 01:02:34]}
{[%emt 00:00:19]} Na6 {[%clk 00:59:09]} {[%emt 00:03:25]} 8. a3 {[%clk
00:55:55]} {[%emt 00:07:09]} c5 {[%clk 00:55:01]} {[%emt 00:04:37]} 9. dxc5
{[%clk 00:51:48]} {[%emt 00:04:38]} Bxc3+ {[%clk 00:49:35]} {[%emt 00:05:54]}
10. bxc3 {[%clk 00:52:10]} {[%emt 00:00:10]} Nd7 {[%clk 00:49:29]} {[%emt
00:00:36]} 11. Bxa6 {[%clk 00:48:48]} {[%emt 00:03:52]} bxa6 {[%clk 00:49:20]}
{[%emt 00:00:39]} 12. c6 {[%clk 00:43:27]} {[%emt 00:05:51]} Nb8 {[%clk
00:36:32]} {[%emt 00:13:17]} 13. Qxd8+ {[%clk 00:40:32]} {[%emt 00:03:25]} Kxd8
{[%clk 00:36:17]} {[%emt 00:00:45]} 14. Rd1+ {[%clk 00:40:54]} {[%emt
00:00:09]} Kc7 {[%clk 00:32:24]} {[%emt 00:04:22]} 15. Bf4+ {[%clk 00:40:55]}
{[%emt 00:00:28]} Kxc6 {[%clk 00:29:16]} {[%emt 00:03:39]} 16. Ne2 {[%clk
00:41:07]} {[%emt 00:00:19]} Bd7 {[%clk 00:23:31]} {[%emt 00:06:14]} 17. Nd4+
{[%clk 00:39:36]} {[%emt 00:02:02]} Kb7 {[%clk 00:23:05]} {[%emt 00:00:55]} 18.
Rb1+ {[%clk 00:33:00]} {[%emt 00:07:06]} Kc8 {[%clk 00:23:05]} {[%emt
00:00:30]} 19. Kf2 {[%clk 00:24:27]} {[%emt 00:09:03]} Re8 {[%clk 00:19:48]}
{[%emt 00:03:47]} 20. Nb3 {[%clk 00:22:31]} {[%emt 00:02:27]} e5 {[%clk
00:17:26]} {[%emt 00:02:51]} 21. Be3 {[%clk 00:22:38]} {[%emt 00:00:23]} Bb5
{[%clk 00:14:14]} {[%emt 00:03:42]} 22. c4 {[%clk 00:19:52]} {[%emt 00:03:17]}
Bc6 {[%clk 00:14:20]} {[%emt 00:00:23]} 23. Nc5 {[%clk 00:15:26]} {[%emt
00:04:57]} Rd8 {[%clk 00:11:57]} {[%emt 00:02:52]} 24. Rhd1 {[%clk 00:13:04]}
{[%emt 00:02:52]} Rxd1 {[%clk 00:12:00]} {[%emt 00:00:27]} 25. Rxd1 {[%clk
00:13:33]} {[%emt 00:00:02]} Kc7 {[%clk 00:11:51]} {[%emt 00:00:38]} 26. Bg5
{[%clk 00:12:11]} {[%emt 00:01:52]} Nd7 {[%clk 00:10:14]} {[%emt 00:02:07]} 27.
Nxd7 {[%clk 00:11:30]} {[%emt 00:01:11]} Bxd7 {[%clk 00:10:30]} {[%emt
00:00:14]} 28. Bf6 {[%clk 00:11:21]} {[%emt 00:00:40]} Re8 {[%clk 00:10:36]}
{[%emt 00:00:23]} 29. Rd5 {[%clk 00:09:19]} {[%emt 00:02:32]} Be6 {[%clk
00:07:52]} {[%emt 00:03:15]} 30. Bxe5+ {[%clk 00:07:37]} {[%emt 00:02:12]} Kc6
{[%clk 00:06:55]} {[%emt 00:01:25]} 31. Rd6+ {[%clk 00:07:34]} {[%emt
00:00:35]} Kc5 {[%clk 00:06:54]} {[%emt 00:00:30]} 32. Rxa6 {[%clk 00:06:37]}
{[%emt 00:01:27]} Bxc4 {[%clk 00:06:52]} {[%emt 00:00:33]} 33. Ra5+ {[%clk
00:06:58]} {[%emt 00:00:09]} Kb6 {[%clk 00:06:40]} {[%emt 00:00:42]} 34. Bc3
{[%clk 00:07:08]} {[%emt 00:00:20]} Bb5 {[%clk 00:06:18]} {[%emt 00:00:52]} 35.
Bb4 {[%clk 00:05:13]} {[%emt 00:02:25]} Rc8 {[%clk 00:05:48]} {[%emt 00:00:59]}
36. h4 {[%clk 00:02:37]} {[%emt 00:03:06]} Rc2+ {[%clk 00:05:46]} {[%emt
00:00:33]} 37. Kg3 {[%clk 00:02:42]} {[%emt 00:00:25]} h5 {[%clk 00:05:17]}
{[%emt 00:00:58]} 38. e5 {[%clk 00:01:04]} {[%emt 00:02:09]} Re2 {[%clk
00:04:23]} {[%emt 00:01:23]} 39. Kf4 {[%clk 00:00:46]} {[%emt 00:00:48]} Rxg2
{[%clk 00:04:22]} {[%emt 00:00:31]} 40. a4 {[%clk 00:00:47]} {[%emt 00:00:30]}
Bc6 {[%clk 00:04:40]} {[%emt 00:00:11]} 41. Rc5 {[%clk 00:00:52]} {[%emt
00:00:26]} Bxa4 {[%clk 00:04:51]} {[%emt 00:00:19]} 42. Rc8 {[%clk 00:01:07]}
{[%emt 00:00:15]} Bc6 {[%clk 00:04:04]} {[%emt 00:01:15]} 43. Bc3 {[%clk
00:00:55]} {[%emt 00:00:44]} Kb7 {[%clk 00:03:51]} {[%emt 00:00:42]} 44. Rd8
{[%clk 00:00:59]} {[%emt 00:00:27]} Rf2 {[%clk 00:02:59]} {[%emt 00:01:21]} 45.
Rd3 {[%clk 00:01:18]} {[%emt 00:00:11]} Rf1 {[%clk 00:03:09]} {[%emt 00:00:20]}
46. Bb4 {[%clk 00:01:05]} {[%emt 00:00:44]} Kb6 {[%clk 00:03:15]} {[%emt
00:00:22]} 47. Be7 {[%clk 00:00:52]} {[%emt 00:00:45]} Kb5 {[%clk 00:03:06]}
{[%emt 00:00:38]} 48. Rb3+ {[%clk 00:00:56]} {[%emt 00:00:26]} Kc4 {[%clk
00:03:01]} {[%emt 00:00:34]} 49. Ra3 {[%clk 00:01:11]} {[%emt 00:00:16]} Kd4
{[%clk 00:02:11]} {[%emt 00:01:20]} 50. Bf6 {[%clk 00:01:35]} {[%emt 00:00:07]}
Kc5 {[%clk 00:01:59]} {[%emt 00:00:41]} 51. Rxa7 {[%clk 00:01:54]} {[%emt
00:00:11]} Rxf3+ {[%clk 00:02:20]} {[%emt 00:00:10]} 52. Kg5 {[%clk 00:02:05]}
{[%emt 00:00:19]} Bd5 {[%emt 00:00:39]} 53. Kh6 {[%emt 00:00:01]} Kd4 {[%emt
00:00:05]} 54. Kg7 g5 {[%emt 00:00:02]} 55. e6+ Kc5 1/2-1/2

[Event "Latvijas 2022. gada jauniešu čempionāta fināls"]
[Site "Riga, Latvia"]
[Date "2022.06.14"]
[Round "4.3"]
[White "Bogdanovics, Kirills"]
[Black "Podojniks, Marks Ernests"]
[Result "1-0"]
[TimeControl "3600+30"]
[WhiteElo "1785"]
[BlackElo "1372"]

1. d4 d5 2. c4 {[%clk 01:00:59]} e6 {[%clk 01:01:22]} {[%emt 00:06:40]} 3. Nc3
{[%emt 00:00:18]} c6 4. Nf3 {[%clk 01:02:11]} {[%emt 00:00:01]} h6 {[%clk
01:02:09]} {[%emt 00:00:08]} 5. e4 {[%clk 01:02:10]} {[%emt 00:00:31]} dxe4
{[%clk 01:01:56]} {[%emt 00:00:43]} 6. Nxe4 {[%clk 01:02:27]} {[%emt 00:00:13]}
Nf6 {[%clk 01:02:14]} {[%emt 00:00:11]} 7. Nxf6+ {[%clk 00:59:31]} {[%emt
00:03:26]} Qxf6 {[%clk 01:02:35]} {[%emt 00:00:09]} 8. Be2 {[%clk 00:59:51]}
{[%emt 00:00:10]} Bb4+ {[%clk 01:02:15]} {[%emt 00:00:51]} 9. Bd2 {[%clk
01:00:12]} {[%emt 00:00:09]} Bxd2+ {[%clk 01:02:23]} {[%emt 00:00:22]} 10. Qxd2
{[%clk 01:00:34]} {[%emt 00:00:08]} O-O {[%clk 01:02:14]} {[%emt 00:00:38]} 11.
O-O {[%clk 00:53:36]} {[%emt 00:07:29]} Rd8 {[%clk 01:00:18]} {[%emt 00:02:26]}
12. Qe3 {[%clk 00:53:12]} {[%emt 00:00:54]} Nd7 {[%clk 00:58:39]} {[%emt
00:02:09]} 13. Rfd1 {[%clk 00:51:24]} {[%emt 00:02:17]} Nf8 {[%clk 00:51:09]}
{[%emt 00:08:01]} 14. Ne5 {[%clk 00:46:38]} {[%emt 00:05:17]} Ng6 {[%clk
00:48:28]} {[%emt 00:03:10]} 15. Nxg6 {[%clk 00:42:13]} {[%emt 00:04:55]} Qxg6
{[%clk 00:48:42]} {[%emt 00:00:16]} 16. Bd3 {[%clk 00:41:32]} {[%emt 00:01:11]}
Qf6 {[%clk 00:47:47]} {[%emt 00:01:20]} 17. b4 {[%clk 00:40:18]} {[%emt
00:01:49]} Bd7 {[%clk 00:42:28]} {[%emt 00:05:48]} 18. a4 {[%clk 00:40:08]}
{[%emt 00:00:40]} Re8 {[%clk 00:42:13]} {[%emt 00:00:44]} 19. Be4 {[%clk
00:38:18]} {[%emt 00:02:21]} Rab8 {[%clk 00:41:45]} {[%emt 00:00:59]} 20. Qf3
{[%clk 00:37:35]} {[%emt 00:01:13]} Qxf3 {[%clk 00:41:23]} {[%emt 00:00:52]} 21.
Bxf3 {[%clk 00:37:58]} {[%emt 00:00:06]} Rbd8 {[%clk 00:41:36]} {[%emt
00:00:17]} 22. g3 {[%clk 00:35:32]} {[%emt 00:02:56]} Bc8 {[%clk 00:41:19]}
{[%emt 00:00:47]} 23. b5 {[%clk 00:35:25]} {[%emt 00:00:38]} Bd7 {[%clk
00:40:49]} {[%emt 00:00:59]} 24. Rab1 {[%clk 00:34:21]} {[%emt 00:01:34]} Rb8
{[%clk 00:40:43]} {[%emt 00:00:36]} 25. Rb2 {[%clk 00:34:04]} {[%emt 00:00:48]}
Rec8 {[%clk 00:40:40]} {[%emt 00:00:32]} 26. c5 {[%clk 00:30:16]} {[%emt
00:04:19]} b6 {[%clk 00:34:29]} {[%emt 00:06:40]} 27. bxc6 {[%clk 00:30:15]}
{[%emt 00:00:32]} Bxc6 {[%clk 00:34:51]} {[%emt 00:00:08]} 28. Bxc6 {[%clk
00:30:39]} {[%emt 00:00:06]} Rxc6 {[%clk 00:35:16]} {[%emt 00:00:04]} 29. Rdb1
{[%clk 00:30:54]} {[%emt 00:00:16]} Rd8 {[%clk 00:34:20]} {[%emt 00:01:25]} 30.
cxb6 {[%clk 00:31:02]} {[%emt 00:00:22]} axb6 {[%clk 00:34:34]} {[%emt
00:00:16]} 31. Rxb6 {[%clk 00:31:21]} {[%emt 00:00:11]} Rxb6 {[%clk 00:34:47]}
{[%emt 00:00:18]} 32. Rxb6 {[%clk 00:31:36]} {[%emt 00:00:15]} Rxd4 {[%clk
00:35:05]} {[%emt 00:00:11]} 33. Rb8+ {[%clk 00:31:58]} {[%emt 00:00:08]} Kh7
{[%clk 00:35:26]} {[%emt 00:00:10]} 34. a5 {[%clk 00:32:22]} {[%emt 00:00:06]}
Ra4 {[%clk 00:35:47]} {[%emt 00:00:08]} 35. Ra8 {[%clk 00:32:47]} {[%emt
00:00:05]} Kg6 {[%clk 00:36:07]} {[%emt 00:00:10]} 36. a6 {[%clk 00:33:04]}
{[%emt 00:00:14]} Kf6 {[%clk 00:36:15]} {[%emt 00:00:21]} 37. Kg2 {[%clk
00:32:50]} {[%emt 00:00:44]} Ke5 {[%clk 00:36:19]} {[%emt 00:00:22]} 38. h4
{[%clk 00:30:49]} {[%emt 00:02:35]} Ra3 {[%clk 00:33:37]} {[%emt 00:03:11]} 39.
Kf1 {[%clk 00:30:36]} {[%emt 00:00:45]} Ke4 {[%clk 00:32:31]} {[%emt 00:01:36]}
40. Kg2 {[%clk 00:29:34]} {[%emt 00:01:32]} Ke5 {[%clk 00:32:09]} {[%emt
00:00:51]} 41. Kh3 {[%clk 00:28:56]} {[%emt 00:01:09]} Ra4 {[%clk 00:30:24]}
{[%emt 00:02:14]} 42. h5 {[%clk 00:27:49]} {[%emt 00:01:37]} Ke4 {[%clk
00:28:58]} {[%emt 00:01:56]} 43. Kg2 {[%clk 00:17:02]} {[%emt 00:11:18]} Ra3
{[%clk 00:25:34]} {[%emt 00:03:52]} 44. Ra7 {[%clk 00:17:09]} {[%emt 00:00:24]}
g6 {[%clk 00:15:38]} {[%emt 00:10:26]} 45. Rxf7 {[%clk 00:17:26]} {[%emt
00:00:13]} gxh5 {[%clk 00:15:56]} {[%emt 00:00:13]} 46. Rf6 {[%clk 00:17:00]}
{[%emt 00:00:56]} Rxa6 {[%clk 00:15:54]} {[%emt 00:00:32]} 47. Rxh6 {[%clk
00:17:23]} {[%emt 00:00:07]} Ra5 {[%clk 00:13:50]} {[%emt 00:02:32]} 48. f3+
{[%clk 00:17:13]} {[%emt 00:00:41]} Kd3 {[%clk 00:12:51]} {[%emt 00:01:29]} 49.
Rxe6 {[%clk 00:17:36]} {[%emt 00:00:07]} Rg5 {[%clk 00:10:41]} {[%emt
00:02:41]} 50. Kh3 {[%clk 00:17:31]} {[%emt 00:00:35]} Rf5 {[%clk 00:10:48]}
{[%emt 00:00:22]} 51. f4 {[%clk 00:17:48]} {[%emt 00:00:14]} Kd4 {[%clk
00:10:56]} {[%emt 00:00:21]} 52. Kh4 {[%clk 00:18:10]} {[%emt 00:00:09]} 1-0